[Event "NED-ch U14 Youth 2019"]
[Site "Assen"]
[Date "2019.05.01"]
[Round "5.9"]
[White "Klaren, Duncan"]
[Black "Franke, Daniel"]
[Result "0-1"]
[ECO "B51"]
[WhiteElo "1980"]
[BlackElo "1465"]
[Annotator "NA"]
[PlyCount "128"]
[EventDate "2019.04.28"]
[EventType "swiss"]
[EventCountry "NED"]
[SourceTitle "playchess.com"]
[Source "ChessBase"]
[SourceQuality "1"]
[TimeControl "5400+30"]

1. e4 {[%emt 0:00:00]} c5 {[%emt 0:00:00]} 2. Nf3 {[%emt 0:00:00]} Nc6 {[%emt 0:00:00]} 3. Nc3 {[%emt 0:00:00]} d6 {[%emt 0:00:00]} 4. Bb5 {[%emt 0:00:00]} Bd7 {[%emt 0:00:38]} 5. O-O {[%emt 0:01:18]} g6 {[%emt 0:01:30]} 6. Bxc6 {[%emt 0:02:37]} Bxc6 {[%emt 0:01:33]} 7. d4 {[%emt 0:00:05]} Bg7 {[%emt 0:11:30]} 8. Re1 {[%emt 0:03:38]} cxd4 {[%emt 0:05:03]} 9. Nxd4 {[%emt 0:00:29]} Nf6 {[%emt 0:01:48]} 10. Nxc6 {[%emt 0:05:11]} bxc6 {[%emt 0:00:09]} 11. Qf3 {[%emt 0:00:10]} Nd7 {[%emt 0:03:18]} 12. Bf4 {[%emt 0:02:13]} Ne5 {[%emt 0:05:18]} 13. Qe2 {[%emt 0:07:45]} O-O {[%emt 0:01:55]} 14. Rad1 {[%emt 0:01:36]} Qb6 {[%emt 0:06:52]} 15. b3 {[%emt 0:05:16]} Qa5 {[%emt 0:07:19]} 16. Bd2 {[%emt 0:01:32]} Qb6 {[%emt 0:04:31]} 17. Kh1 {[%emt 0:02:59]} Qc5 {[%emt 0:15:34]} 18. Rf1 {[%emt 0:14:53]} Nd7 {[%emt 0:10:26]} 19. Qd3 {[%emt 0:07:42]} Ne5 {[%emt 0:06:10]} 20. Qh3 {[%emt 0:01:08]} Rad8 {[%emt 0:02:42]} 21. f4 {[%emt 0:02:03]} Ng4 {[%emt 0:14:14]} 22. Qxg4 {[%emt 0:01:37]} Bxc3 {[%emt 0:00:00]} 23. Bxc3 {[%emt 0:00:48]} Qxc3 {[%emt 0:00:00]} 24. Qe2 {[%emt 0:00:05]} Qa5 {[%emt 0:00:00]} 25. c4 {[%emt 0:01:11]} Qc7 {[%emt 0:00:00]} 26. Rf3 {[%emt 0:01:23]} f5 {[%emt 0:00:00]} 27. Rfd3 {[%emt 0:02:49]} fxe4 {[%emt 0:00:00]} 28. Qxe4 {[%emt 0:00:05]} Rf6 {[%emt 0:00:15]} 29. Re1 {[%emt 0:03:09]} Rd7 {[%emt 0:00:54]} 30. b4 {[%emt 0:02:06]} d5 {[%emt 0:00:50]} 31. cxd5 {[%emt 0:02:54]} Qxf4 {[%emt 0:00:15]} 32. Qe2 {[%emt 0:04:50]} Rxd5 {[%emt 0:01:19]} 33. Rf3 {[%emt 0:00:57]} Qd6 {[%emt 0:00:23]} 34. a3 {[%emt 0:01:06]} Rxf3 {[%emt 0:00:22]} 35. Qxf3 {[%emt 0:00:05]} Rf5 {[%emt 0:00:46]} 36. Qc3 {[%emt 0:01:38]} Qf6 {[%emt 0:00:24]} 37. Qd3 {[%emt 0:00:20]} Qd6 {[%emt 0:01:06]} 38. Qa6 {[%emt 0:00:35]} Qf6 {[%emt 0:01:15]} 39. a4 {[%emt 0:01:35]} Re5 {[%emt 0:00:34]} 40. Rf1 {[%emt 0:00:21]} Rf5 {[%emt 0:00:26]} 41. Rd1 {[%emt 0:01:04]} Kg7 {[%emt 0:00:35]} 42. h3 {[%emt 0:01:24]} c5 {[%emt 0:00:15]} 43. Qc4 {[%emt 0:02:48]} cxb4 {[%emt 0:00:24]} 44. Qxb4 {[%emt 0:03:46]} Rf1+ {[%emt 0:00:41]} 45. Rxf1 {[%emt 0:00:05]} Qf5 {[%emt 0:01:16]} 46. Rf2 Qxf2 {[%emt 0:00:00]} 47. Kh2 {[%emt 0:00:34]} Qf6 {[%emt 0:00:00]} 48. Qa5 {[%emt 0:00:38]} Qd4 {[%emt 0:00:25]} 49. Qg5 {[%emt 0:00:30]} Qf6 {[%emt 0:00:49]} 50. Qa5 {[%emt 0:00:07]} Qf4+ {[%emt 0:00:42]} 51. Kg1 {[%emt 0:00:21]} Qe3+ {[%emt 0:00:27]} 52. Kh1 {[%emt 0:00:09]} Qc1+ {[%emt 0:00:26]} 53. Kh2 {[%emt 0:00:08]} Qf4+ {[%emt 0:00:02]} 54. Kg1 {[%emt 0:00:10]} Qd4+ {[%emt 0:00:25]} 55. Kh2 {[%emt 0:00:08]} Qe3 {[%emt 0:00:09]} 56. Qc7 {[%emt 0:00:22]} g5 {[%emt 0:00:26]} 57. a5 {[%emt 0:00:46]} Qf4+ {[%emt 0:00:28]} 58. Qxf4 {[%emt 0:01:33]} gxf4 {[%emt 0:00:03]} 59. g3 {[%emt 0:00:07]} e5 {[%emt 0:00:27]} 60. gxf4 {[%emt 0:00:16]} exf4 {[%emt 0:00:05]} 61. Kg2 {[%emt 0:00:05]} Kf6 {[%emt 0:00:05]} 62. Kf3 {[%emt 0:00:03]} Kf5 {[%emt 0:00:08]} 63. a6 {[%emt 0:00:09]} h6 {[%emt 0:00:10]} 64. h4 {[%emt 0:00:03]} h5 {[%emt 0:00:06]} 0-1

[Event "NED-ch U14 Youth 2019"]
[Site "Assen"]
[Date "2019.05.01"]
[Round "5.10"]
[White "Jakhari, Ansh"]
[Black "De Heij, Mees"]
[Result "1-0"]
[ECO "B33"]
[WhiteElo "1630"]
[BlackElo "1524"]
[Annotator "NA"]
[PlyCount "111"]
[EventDate "2019.04.28"]
[EventType "swiss"]
[EventCountry "NED"]
[SourceTitle "playchess.com"]
[Source "ChessBase"]
[SourceQuality "1"]
[TimeControl "5400+30"]

1. e4 {[%emt 0:00:00]} c5 {[%emt 0:00:00]} 2. Nf3 {[%emt 0:00:00]} Nc6 {[%emt 0:00:00]} 3. d4 {[%emt 0:00:08]} cxd4 {[%emt 0:00:00]} 4. Nxd4 {[%emt 0:00:05]} Nf6 {[%emt 0:00:00]} 5. Nc3 {[%emt 0:00:06]} e5 {[%emt 0:00:00]} 6. Ndb5 {[%emt 0:00:11]} d6 {[%emt 0:00:11]} 7. Bg5 {[%emt 0:00:07]} a6 {[%emt 0:00:15]} 8. Na3 {[%emt 0:00:07]} b5 {[%emt 0:00:11]} 9. Nd5 {[%emt 0:00:13]} Be7 {[%emt 0:00:21]} 10. Bxf6 {[%emt 0:00:12]} Bxf6 {[%emt 0:00:06]} 11. c4 {[%emt 0:00:12]} bxc4 {[%emt 0:05:04]} 12. Nxc4 {[%emt 0:00:17]} O-O {[%emt 0:02:03]} 13. Be2 {[%emt 0:03:05]} Nd4 {[%emt 0:04:05]} 14. O-O {[%emt 0:01:51]} Rb8 {[%emt 0:02:42]} 15. Bg4 {[%emt 0:09:31]} Bb7 {[%emt 0:08:26]} 16. Nxf6+ {[%emt 0:04:46]} Qxf6 {[%emt 0:03:59]} 17. f4 {[%emt 0:09:57]} exf4 {[%emt 0:08:35]} 18. Qd2 {[%emt 0:00:04]} Nb5 {[%emt 0:14:20]} 19. Rxf4 {[%emt 0:01:37]} Qg6 {[%emt 0:02:57]} 20. Re1 {[%emt 0:07:05]} Rfe8 {[%emt 0:01:52]} 21. a4 {[%emt 1:00:56]} Nc7 {[%emt 0:04:19]} 22. Bf5 {[%emt 0:00:00]} Qh6 {[%emt 0:02:51]} 23. Qf2 {[%emt 0:00:00]} g6 {[%emt 0:07:01]} 24. Bd7 {[%emt 0:00:00]} Re7 {[%emt 0:00:18]} 25. Bh3 {[%emt 0:00:00]} d5 {[%emt 0:02:20]} 26. Nd6 {[%emt 0:00:00]} Qg7 {[%emt 0:02:54]} 27. Rf1 {[%emt 0:00:00]} dxe4 {[%emt 0:06:17]} 28. Rxf7 {[%emt 0:00:00]} Rxf7 {[%emt 0:01:44]} 29. Qxf7+ {[%emt 0:00:00]} Qxf7 {[%emt 0:00:52]} 30. Rxf7 {[%emt 0:00:00]} Bd5 {[%emt 0:05:12]} 31. Rxc7 {[%emt 0:00:00]} Rxb2 {[%emt 0:03:05]} 32. Re7 {[%emt 0:00:00]} Rb4 {[%emt 0:00:54]} 33. Re5 {[%emt 0:00:00]} Bc6 {[%emt 0:00:33]} 34. a5 {[%emt 0:00:00]} Rd4 {[%emt 0:00:55]} 35. Nc8 {[%emt 0:00:00]} Kg7 {[%emt 0:02:28]} 36. Rc5 {[%emt 0:00:00]} e3 {[%emt 0:00:54]} 37. Kf1 {[%emt 0:00:00]} Bb5+ {[%emt 0:00:59]} 38. Ke1 {[%emt 0:00:00]} Rb4 {[%emt 0:05:46]} 39. Rc1 {[%emt 0:00:00]} e2 {[%emt 0:01:32]} 40. g3 {[%emt 0:00:00]} Ra4 {[%emt 0:00:53]} 41. Nd6 {[%emt 0:00:00]} Bd3 {[%emt 0:00:44]} 42. Nb7 {[%emt 0:00:00]} Rb4 {[%emt 0:00:25]} 43. Nc5 {[%emt 0:00:00]} Bb5 {[%emt 0:00:55]} 44. Ne6+ {[%emt 0:00:00]} Kh6 {[%emt 0:00:19]} 45. Nf4 {[%emt 0:00:00]} Rb2 {[%emt 0:00:31]} 46. Bg4 {[%emt 0:00:00]} Kg5 {[%emt 0:00:56]} 47. Bxe2 {[%emt 0:00:00]} Bxe2 {[%emt 0:00:14]} 48. Nxe2 {[%emt 0:00:00]} Rb5 {[%emt 0:00:37]} 49. Ra1 {[%emt 0:00:00]} Rb2 {[%emt 0:00:23]} 50. Ra4 {[%emt 0:00:00]} Rb5 {[%emt 0:00:13]} 51. Nd4 {[%emt 0:00:00]} Rb2 {[%emt 0:00:14]} 52. Ne2 {[%emt 0:00:00]} Rb5 {[%emt 0:00:15]} 53. Kf2 {[%emt 0:00:00]} Rb2 {[%emt 0:00:15]} 54. Rf4 {[%emt 0:00:00]} Rb5 {[%emt 0:00:16]} 55. Nd4 {[%emt 0:00:00]} Re5 {[%emt 0:01:17]} 56. Nf3+ {[%emt 0:00:00]} 1-0

[Event "NED-ch U14 Youth 2019"]
[Site "Assen"]
[Date "2019.05.01"]
[Round "5.13"]
[White "Arnold, Lorin"]
[Black "Tiggelman, Vincent"]
[Result "1-0"]
[ECO "D00"]
[WhiteElo "1598"]
[BlackElo "1378"]
[Annotator "NA"]
[PlyCount "43"]
[EventDate "2019.04.28"]
[EventType "swiss"]
[EventCountry "NED"]
[SourceTitle "playchess.com"]
[Source "ChessBase"]
[SourceQuality "1"]
[TimeControl "5400+30"]

1. d4 {[%emt 0:00:00]} c6 {[%emt 0:00:00]} 2. e3 {[%emt 0:00:00]} d5 {[%emt 0:00:00]} 3. Bd3 {[%emt 0:00:01]} Nf6 {[%emt 0:00:02]} 4. f4 {[%emt 0:00:33]} Bg4 {[%emt 0:01:40]} 5. Nf3 {[%emt 0:00:13]} Nbd7 {[%emt 0:00:35]} 6. O-O {[%emt 0:00:36]} e6 {[%emt 0:00:13]} 7. Nbd2 {[%emt 0:01:04]} Be7 {[%emt 0:01:51]} 8. c3 {[%emt 0:00:17]} Bxf3 {[%emt 0:00:59]} 9. Nxf3 {[%emt 0:03:54]} O-O {[%emt 0:02:09]} 10. Ne5 {[%emt 0:00:46]} Rc8 {[%emt 0:20:09]} 11. Rf3 {[%emt 0:06:15]} c5 {[%emt 0:11:27]} 12. Rh3 {[%emt 0:01:27]} Re8 {[%emt 0:18:01]} 13. Bxh7+ {[%emt 0:23:26]} Nxh7 {[%emt 0:18:56]} 14. Qh5 {[%emt 0:00:52]} Ndf8 {[%emt 0:10:50]} 15. Qxf7+ {[%emt 0:01:24]} Kh8 {[%emt 0:00:12]} 16. Ng6+ {[%emt 0:01:22]} Nxg6 {[%emt 0:00:35]} 17. Qxg6 {[%emt 0:00:20]} Kg8 {[%emt 0:00:19]} 18. Qxe6+ {[%emt 0:01:13]} Kh8 {[%emt 0:01:51]} 19. Qg6 {[%emt 0:00:06]} Kg8 {[%emt 0:00:11]} 20. Qxh7+ {[%emt 0:00:25]} Kf7 {[%emt 0:00:21]} 21. Qf5+ {[%emt 0:00:43]} Kg8 {[%emt 0:00:25]} 22. Qe6+ {[%emt 0:56:03]} 1-0

[Event "NED-ch U14 Youth 2019"]
[Site "Assen"]
[Date "2019.05.02"]
[Round "6.1"]
[White "Brandsma, Romayn"]
[Black "Pham, Khoi"]
[Result "0-1"]
[ECO "A45"]
[WhiteElo "1958"]
[BlackElo "2140"]
[Annotator "NA RC"]
[PlyCount "62"]
[EventDate "2019.04.28"]
[EventType "swiss"]
[EventCountry "NED"]
[SourceTitle "playchess.com"]
[Source "ChessBase"]
[SourceQuality "1"]
[TimeControl "5400+30"]

{[%evp 9,53,-8,39,18,28,39,69,81,211,213,257,33,71,20,56,-73,126,66,71,32767,36,-60,11,13,32767,-18,32767,32767,32767,32767,32767,32767,32767,-127,-147,-401,-417,-1099,-376,-427,32767,32767,32767,32767,32767,-29987]} 1. d4 {[%emt 0:00:00]} Nf6 {[%emt 0:00:00]} 2. Bf4 {[%emt 0:00:00]} g6 {[%emt 0:00:00]} 3. Nc3 {[%emt 0:00:00]} d5 {[%emt 0:02:14]} 4. Qd2 {[%emt 0:05:42]} (4. e3 Bg7 5. h4 c6 6. Be2 h5 7. Nf3 Bg4 8. Ne5 Bxe2 9. Qxe2 Nbd7 10. O-O-O Rc8 11. f3 {0-1 (60) Nabaty,T (2692)-Rodshtein,M (2674) Czech Republic 2019}) 4... a6 {[%emt 0:01:52]} 5. f3 {[%emt 0:07:29]} Bg7 {[%emt 0:01:42]} 6. O-O-O {[%emt 0:02:52] A45: Trompowsky Attack} O-O {[%emt 0:02:19]} 7. Bh6 {[%emt 0:02:21]} b5 $146 {[%emt 0:00:40]} ({Predecessor:} 7... c5 8. Bxg7 Kxg7 9. dxc5 Qa5 10. Nxd5 Qxa2 11. Qc3 Rd8 12. e4 Nc6 13. Bc4 Qa1+ 14. Kd2 Qa5 15. Bd3 Qxc3+ 16. Nxc3 Be6 17. Nge2 {½-½ (17) Prochnow,M (2240)-Schnepp,G (2343) Wuerttemberg 2003}) 8. h4 {[%emt 0:04:32]} Be6 {[%emt 0:08:45] [#]} (8... Bxh6 $16 {was necessary.} 9. Qxh6 b4) 9. h5 $1 {[%emt 0:03:43]} c5 {[%emt 0:02:19]} ({Of course not} 9... Nxh5 {[#]} 10. Rxh5 $1 {[%mdl 512]} Bxh6 11. Rxh6 $18) 10. g4 $2 {[%emt 0:08:15]} (10. Bxg7 $18 Kxg7 11. dxc5 (11. hxg6 fxg6 12. dxc5 Qc7 $18)) 10... cxd4 {[%emt 0:05:40]} 11. Bxg7 {[%emt 0:00:36]} Kxg7 {[%emt 0:00:15]} 12. hxg6 {[%emt 0:01:11]} (12. Qxd4 $14 {keeps the upper hand.} Nc6 13. Qd2) 12... fxg6 $2 {[%emt 0:00:34]} (12... dxc3 $15 {stays ahead.} 13. Qh6+ {[%mdl 64] Double Attack} Kg8) 13. Qh6+ {[%emt 0:03:40]} Kg8 {[%emt 0:01:04]} 14. Rxd4 {[%emt 0:10:50]} Nc6 {[%emt 0:03:48]} 15. Rf4 {[%emt 0:08:22]} (15. Rd1 $14 Qb6 16. Nh3) 15... Qc7 {[%emt 0:04:18]} (15... Rf7 $15 16. e3 b4) 16. e3 {[%emt 0:05:48]} Qe5 {[%emt 0:06:44] [#]} 17. Rxf6 {[%emt 0:06:20]} (17. Nd1 $1 $16) 17... Rxf6 {[%emt 0:00:22]} 18. Qxh7+ {[%emt 0:00:08]} Kf8 {[%emt 0:00:08]} 19. Qh6+ {[%emt 0:00:15]} Ke8 {[%emt 0:01:09]} 20. Kd2 {[%emt 0:11:52]} Kd7 {[%emt 0:04:43]} 21. f4 {[%emt 0:03:11]} Qd6 {[%emt 0:02:31]} 22. g5 $2 {[%emt 0:05:53] [#]} (22. Nf3 $17) 22... d4 $1 {[%emt 0:05:47]} 23. Ne4 {[%emt 0:04:06]} (23. Bd3 $142 Rff8 24. Qxg6) 23... Qb4+ $2 {[%emt 0:02:50]} (23... dxe3+ 24. Kc1 {[#]} Rxf4 $1 {[%mdl 576] Double Attack}) 24. Kd1 {[%emt 0:00:40]} Rf5 {[%emt 0:01:43]} 25. Bh3 {[%emt 0:01:46]} dxe3 {[%emt 0:00:59]} 26. Bxf5 {[%emt 0:02:26]} Bxf5 {[%emt 0:00:06]} 27. Nf6+ {[%emt 0:00:41]} exf6 {[%emt 0:00:25]} 28. Qg7+ {[%emt 0:00:37]} Ne7 {[%emt 0:00:29]} 29. Nf3 {[%emt 0:00:33]} Bg4 {[%emt 0:01:26]} 30. Kc1 {[%emt 0:00:12]} Bxf3 {[%emt 0:00:26]} 31. Rf1 {[%emt 0:00:27]} e2 {[%emt 0:00:27]} 0-1

[Event "NED-ch U14 Youth 2019"]
[Site "Assen"]
[Date "2019.05.02"]
[Round "6.2"]
[White "Yeh, Timo"]
[Black "Roebers, Eline"]
[Result "1/2-1/2"]
[ECO "A85"]
[WhiteElo "1783"]
[BlackElo "2077"]
[Annotator "NA RC"]
[PlyCount "131"]
[EventDate "2019.04.28"]
[EventType "swiss"]
[EventCountry "NED"]
[SourceTitle "playchess.com"]
[Source "ChessBase"]
[SourceQuality "1"]
[TimeControl "5400+30"]

1. d4 {[%emt 0:00:00]} f5 {[%emt 0:00:00]} 2. Bg5 {[%emt 0:00:00]} Nf6 {[%emt 0:02:36]} 3. Nf3 {[%emt 0:00:00]} e6 {[%emt 0:03:14]} 4. e3 {[%emt 0:00:00]} Be7 {[%emt 0:00:32]} 5. c4 {[%emt 0:00:00]} d5 {[%emt 0:02:37]} 6. Nc3 {[%emt 0:00:00]} c6 {[%emt 0:00:06]} 7. Be2 {[%emt 0:00:14]} O-O {[%emt 0:00:32] A85: Dutch Defence: 2 c4 Nf6 3 Nc3} 8. O-O {[%emt 0:00:12]} Nbd7 {[%emt 0:02:02]} (8... Ne4 9. Bxe7 Qxe7 10. Ne5 Nd7 11. Nxd7 Bxd7 12. f4 Rab8 13. Nxe4 fxe4 14. Rc1 Rf6 15. g4 g6 16. g5 Rf7 17. h4 {½-½ (17) Martinez,R (2447)-Salvador,R (2456) Milan 2007}) 9. a4 $146 {[%emt 0:00:52]} ({Predecessor:} 9. c5 h6 10. Bh4 g5 11. Bxg5 hxg5 12. Nxg5 Nb8 13. f4 Ne4 14. Ncxe4 dxe4 15. h4 Bxg5 16. hxg5 Kg7 17. Kf2 {0-1 (40) Mutabazi,F (1818)-Elliott,W (2206) Batumi 2018}) 9... a5 {[%emt 0:03:18]} 10. Qc2 {[%emt 0:00:48]} h6 {[%emt 0:02:32]} 11. Bxf6 {[%emt 0:00:15]} Nxf6 {[%emt 0:00:16]} 12. Rab1 {[%emt 0:00:04]} Bd6 {[%emt 0:05:09]} 13. Ne5 {[%emt 0:04:47]} Qe8 {[%emt 0:09:26]} (13... Bxe5 $5 14. dxe5 Nd7 $11) 14. f4 {[%emt 0:01:01]} Bxe5 {[%emt 0:06:22]} 15. fxe5 {[%emt 0:00:09]} Ne4 {[%emt 0:01:37]} 16. Nxe4 {[%emt 0:00:11]} fxe4 {[%emt 0:03:18]} 17. Rxf8+ {[%emt 0:01:56]} Qxf8 {[%emt 0:00:21]} 18. Rf1 {[%emt 0:00:03]} Qe7 {[%emt 0:00:41]} 19. Qb3 {[%emt 0:04:05]} Bd7 {[%emt 0:20:48]} (19... Qb4 $14 20. Qxb4 axb4) 20. Qxb7 {[%emt 0:02:26]} Qd8 {[%emt 0:00:14]} 21. Qb3 {[%emt 0:03:21]} Rb8 {[%emt 0:00:09]} 22. Qa3 {[%emt 0:02:05]} Rb4 {[%emt 0:01:39]} 23. cxd5 {[%emt 1:19:01]} cxd5 {[%emt 0:00:49]} 24. Bb5 {[%emt 0:00:00]} (24. b3 $16) 24... Bxb5 {[%emt 0:03:26]} 25. axb5 {[%emt 0:00:00]} Rxb5 {[%emt 0:00:58]} 26. Qd6 {[%emt 0:00:00]} Qe8 {[%emt 0:07:57]} 27. Qa3 {[%emt 0:00:00]} Qd8 {[%emt 0:01:12]} 28. Qd6 {[%emt 0:00:00]} Qxd6 {[%emt 0:09:58]} 29. exd6 {[%emt 0:00:00]} Rb6 {[%emt 0:00:04]} 30. Ra1 {[%emt 0:00:00]} Rxd6 {[%emt 0:00:05]} 31. Rxa5 {[%emt 0:00:00]} Rb6 {[%emt 0:00:07]} 32. Ra2 {[%emt 0:00:00]} Kf7 {[%emt 0:00:49]} 33. Kf2 {[%emt 0:00:00]} Kf6 {[%emt 0:00:44]} 34. Ke2 {[%emt 0:00:00]} e5 {[%emt 0:01:15]} (34... Kg5 $17 35. Kd2 Rb3) 35. dxe5+ {[%emt 0:00:00]} Kxe5 {[%emt 0:00:05]} 36. g3 {[%emt 0:00:00]} Rb3 {[%emt 0:02:13]} 37. Kd2 {[%emt 0:00:00]} h5 {[%emt 0:03:12]} 38. h3 {[%emt 0:00:00]} g5 {[%emt 0:02:51]} 39. Ke2 {[%emt 0:00:00]} (39. h4 $17) 39... Rb5 {[%emt 0:03:28]} 40. Kd2 {[%emt 0:00:00]} Rb3 {[%emt 0:00:24]} 41. Ke2 {[%emt 0:00:00]} h4 {[%emt 0:01:55]} 42. gxh4 {[%emt 0:00:00]} gxh4 {[%emt 0:00:06]} 43. Kf2 {[%emt 0:00:00]} Rb5 {[%emt 0:00:31]} 44. Ke2 {[%emt 0:00:00]} Rb4 {[%emt 0:00:31]} 45. Kd2 {[%emt 0:00:00]} Rb3 {[%emt 0:00:11]} 46. Ke2 {[%emt 0:00:00]} Rb5 {[%emt 0:00:26]} 47. Kd2 {[%emt 0:00:00]} Rb3 {[%emt 0:00:52]} 48. Ke2 {[%emt 0:00:00]} Rb6 {[%emt 0:01:41]} 49. Kf2 {[%emt 0:00:00]} Rc6 {[%emt 0:00:35]} (49... Rf6+ $19 {has better winning chances.} 50. Kg2 Rg6+ 51. Kh2 Rc6) 50. b4 {[%emt 0:00:00] [#]} Rb6 {[%emt 0:00:12]} (50... Rf6+ $1 $17 51. Ke2 Rf3) 51. Rb2 {[%emt 0:00:00]} Kd6 {[%emt 0:00:40]} 52. Ke2 {[%emt 0:00:00]} Kc6 {[%emt 0:00:35]} 53. Kd2 {[%emt 0:00:00]} d4 {[%emt 0:00:31]} 54. exd4 {[%emt 0:00:00]} Kd5 {[%emt 0:00:06]} 55. Ke3 $11 {[%emt 0:00:00]} Rg6 {[%emt 0:00:14]} 56. b5 {[%emt 0:16:30]} Rg3+ {[%emt 0:00:59]} 57. Kf4 {[%emt 0:00:00]} Rxh3 {[%emt 0:00:32]} 58. b6 {[%emt 0:00:00]} Rf3+ {[%emt 0:00:03]} 59. Kg4 {[%emt 0:00:00]} Rf8 {[%emt 0:00:08]} 60. b7 {[%emt 0:00:00]} Rb8 {[%emt 0:00:07]} 61. Rb4 {[%emt 0:00:00]} e3 {[%emt 0:00:26]} 62. Kf3 {[%emt 0:00:00]} h3 {[%emt 0:00:06]} 63. Kxe3 {[%emt 0:00:00]} h2 {[%emt 0:00:12]} 64. Rb1 {[%emt 0:00:00]} Rxb7 {[%emt 0:01:08]} 65. Rh1 {[%emt 0:00:00]} Rb3+ {[%emt 0:00:38]} 66. Kf2 {[%emt 0:00:00]} 1/2-1/2

[Event "NED-ch U14 Youth 2019"]
[Site "Assen"]
[Date "2019.05.02"]
[Round "6.4"]
[White "De Winter, Arthur"]
[Black "Bartels, Vladimir"]
[Result "1/2-1/2"]
[ECO "C50"]
[WhiteElo "1661"]
[BlackElo "1748"]
[Annotator "NA RC"]
[PlyCount "44"]
[EventDate "2019.04.28"]
[EventType "swiss"]
[EventCountry "NED"]
[SourceTitle "playchess.com"]
[Source "ChessBase"]
[SourceQuality "1"]
[TimeControl "5400+30"]

1. e4 {[%emt 0:00:00]} e5 {[%emt 0:00:00]} 2. Bc4 {[%emt 0:00:00]} Nf6 {[%emt 0:00:00]} 3. d3 {[%emt 0:00:03]} Nc6 {[%emt 0:00:24]} 4. Nf3 {[%emt 0:00:11]} Bc5 {[%emt 0:01:04]} 5. O-O {[%emt 0:00:27]} d6 {[%emt 0:00:18]} 6. h3 {[%emt 0:01:14]} Na5 {[%emt 0:01:17]} 7. Bb3 {[%emt 0:03:21]} Nxb3 {[%emt 0:00:10]} 8. axb3 {[%emt 0:00:05]} Be6 {[%emt 0:02:52]} 9. c3 {[%emt 0:01:48]} h6 {[%emt 0:02:17]} 10. d4 {[%emt 0:01:14]} exd4 {[%emt 0:00:13]} 11. cxd4 {[%emt 0:00:08]} Bb6 {[%emt 0:01:02]} 12. Nc3 {[%emt 0:01:25]} a6 {[%emt 0:01:42]} 13. Re1 {[%emt 0:04:19]} O-O {[%emt 0:04:12]} 14. d5 {[%emt 0:04:19]} Bd7 {[%emt 0:03:16]} 15. Bf4 {[%emt 0:01:15]} Nh5 {[%emt 0:08:59]} 16. Bh2 {[%emt 0:00:39]} Qf6 {[%emt 0:18:01]} 17. e5 {[%emt 0:06:13]} Qg6 {[%emt 0:16:29]} 18. Nh4 {[%emt 0:02:50]} Qg5 {[%emt 0:02:17]} 19. Nf3 {[%emt 0:00:36]} Qg6 {[%emt 0:00:47]} 20. Nh4 {[%emt 0:04:27]} Qg5 {[%emt 0:01:06]} 21. Nf3 {[%emt 0:01:34]} Qg6 {[%emt 0:00:42]} 22. Nh4 {[%emt 0:01:48]} Qg5 {[%emt 0:00:49]} 1/2-1/2

[Event "NED-ch U14 Youth 2019"]
[Site "Assen"]
[Date "2019.05.02"]
[Round "6.5"]
[White "Slagboom, Leandro"]
[Black "Catalan, Ciro"]
[Result "1-0"]
[ECO "B36"]
[WhiteElo "1738"]
[BlackElo "1599"]
[Annotator "NA"]
[PlyCount "107"]
[EventDate "2019.04.28"]
[EventType "swiss"]
[EventCountry "NED"]
[SourceTitle "playchess.com"]
[Source "ChessBase"]
[SourceQuality "1"]
[TimeControl "5400+30"]

1. e4 {[%emt 0:00:00]} c5 {[%emt 0:00:00]} 2. Nf3 {[%emt 0:00:00]} g6 {[%emt 0:00:00]} 3. d4 {[%emt 0:00:00]} cxd4 {[%emt 0:00:00]} 4. Nxd4 {[%emt 0:00:00]} Nc6 {[%emt 0:00:00]} 5. c4 {[%emt 0:00:02]} Nf6 {[%emt 0:00:11]} 6. Nc3 {[%emt 0:00:05]} Nxd4 {[%emt 0:02:09]} 7. Qxd4 {[%emt 0:00:03]} d6 {[%emt 0:00:15]} 8. Be3 {[%emt 0:00:30]} Bg7 {[%emt 0:03:11]} 9. f3 {[%emt 0:00:16]} O-O {[%emt 0:00:39]} 10. Qd2 {[%emt 0:00:09]} Be6 {[%emt 0:10:29]} 11. Rc1 {[%emt 0:03:50]} a6 {[%emt 0:14:27]} 12. Be2 {[%emt 0:00:46]} Qa5 {[%emt 0:05:43]} 13. O-O {[%emt 0:01:24]} Rfc8 {[%emt 0:00:48]} 14. b3 {[%emt 0:03:43]} Nd7 {[%emt 0:07:57]} 15. Nd5 {[%emt 0:04:37]} Qxd2 {[%emt 0:05:48]} 16. Bxd2 {[%emt 0:00:26]} Kf8 {[%emt 0:04:59]} 17. Nf4 {[%emt 0:04:18]} Nc5 {[%emt 0:08:51]} 18. b4 {[%emt 0:01:06]} Nd7 {[%emt 0:00:08]} 19. Nxe6+ {[%emt 0:00:24]} fxe6 {[%emt 0:00:01]} 20. f4 {[%emt 0:04:32]} Nb6 {[%emt 0:14:17]} 21. Bc3 {[%emt 0:04:11]} Bxc3 {[%emt 0:04:58]} 22. Rxc3 {[%emt 0:01:32]} d5 {[%emt 0:02:03]} 23. c5 {[%emt 0:11:01]} dxe4 {[%emt 0:04:49]} 24. Re3 {[%emt 0:00:39]} Nd5 {[%emt 0:00:48]} 25. Rxe4 {[%emt 0:00:10]} Kf7 {[%emt 0:02:44]} 26. Bg4 {[%emt 0:01:30]} Rc6 {[%emt 0:01:08]} 27. Rfe1 {[%emt 0:01:21]} Nc7 {[%emt 0:01:13]} 28. Re5 {[%emt 0:03:33]} Rd8 {[%emt 0:00:58]} 29. Bf3 {[%emt 0:00:55]} Nd5 {[%emt 0:00:25]} 30. Rd1 {[%emt 0:02:03]} Ke8 {[%emt 0:03:05]} 31. Kf2 {[%emt 0:07:54]} a5 {[%emt 0:01:17]} 32. a3 {[%emt 0:01:34]} axb4 {[%emt 0:00:30]} 33. axb4 {[%emt 0:00:01]} Rc7 {[%emt 0:00:20]} 34. Bxd5 {[%emt 0:00:28]} exd5 {[%emt 0:00:02]} 35. Rexd5 {[%emt 0:00:33]} Rxd5 {[%emt 0:01:40]} 36. Rxd5 {[%emt 0:00:02]} Rd7 {[%emt 0:01:01]} 37. Rxd7 {[%emt 0:00:23]} Kxd7 {[%emt 0:00:01]} 38. Ke3 {[%emt 0:01:15]} Kc6 {[%emt 0:01:01]} 39. Kd4 {[%emt 0:00:14]} Kb5 {[%emt 0:00:38]} 40. Kc3 {[%emt 0:00:20]} e6 {[%emt 0:00:33]} 41. h4 {[%emt 0:01:07]} h6 {[%emt 0:00:36]} 42. g4 {[%emt 0:00:14]} h5 {[%emt 0:00:34]} 43. g5 {[%emt 0:00:08]} Kc6 {[%emt 0:00:29]} 44. Kc4 {[%emt 0:00:13]} Kd7 {[%emt 0:00:33]} 45. b5 {[%emt 0:00:14]} Kc7 {[%emt 0:00:15]} 46. Kd4 {[%emt 0:00:11]} Kd7 {[%emt 0:00:22]} 47. Ke5 {[%emt 0:00:07]} Ke7 {[%emt 0:00:14]} 48. c6 {[%emt 0:00:10]} bxc6 {[%emt 0:00:10]} 49. bxc6 {[%emt 0:00:06]} Kd8 {[%emt 0:00:44]} 50. Kxe6 {[%emt 0:00:08]} Kc7 {[%emt 0:00:10]} 51. Kf6 {[%emt 0:00:08]} Kxc6 {[%emt 0:00:06]} 52. Kxg6 {[%emt 0:00:04]} Kd6 {[%emt 0:00:11]} 53. f5 {[%emt 0:00:07]} Ke7 {[%emt 0:00:17]} 54. Kg7 {[%emt 0:00:06]} 1-0